[Event "*** Titled Tuesday Blitz"]
[Site "Chess.com"]
[Date "2020.04.28"]
[Round "7"]
[White "NiranjanNavalgund"]
[Black "LionTheLeon_06"]
[Result "0-1"]
[WhiteElo "2486"]
[BlackElo "2657"]
[TimeControl "180+1"]
[EndTime "11:18:03 PDT"]
[Termination "LionTheLeon_06 won by resignation"]

1. d4 {[%clk 0:03:00.9]} 1... Nf6 {[%clk 0:02:59.8]} 2. c4 {[%clk 0:02:57.7]}
2... e6 {[%clk 0:02:58.8]} 3. Nc3 {[%clk 0:02:57.7]} 3... Bb4 {[%clk 0:02:58.6]}
4. e3 {[%clk 0:02:57.8]} 4... O-O {[%clk 0:02:58.4]} 5. Bd2 {[%clk 0:02:58.2]}
5... b6 {[%clk 0:02:57.8]} 6. Nf3 {[%clk 0:02:58.4]} 6... Bb7 {[%clk 0:02:58.1]}
7. Bd3 {[%clk 0:02:58.8]} 7... d6 {[%clk 0:02:58]} 8. O-O {[%clk 0:02:58.3]}
8... Nbd7 {[%clk 0:02:57.5]} 9. a3 {[%clk 0:02:48.9]} 9... Bxc3 {[%clk
0:02:56.4]} 10. Bxc3 {[%clk 0:02:49.8]} 10... Qe7 {[%clk 0:02:52.1]} 11. Nd2
{[%clk 0:02:23.9]} 11... c5 {[%clk 0:02:47.5]} 12. f4 {[%clk 0:02:22.7]} 12...
Rfd8 {[%clk 0:02:39.9]} 13. Qc2 {[%clk 0:02:17.9]} 13... Rac8 {[%clk 0:02:36.2]}
14. Rae1 {[%clk 0:02:12.6]} 14... h6 {[%clk 0:02:29.9]} 15. Qb1 {[%clk
0:02:11.4]} 15... d5 {[%clk 0:02:22.3]} 16. cxd5 {[%clk 0:01:57.4]} 16... Nxd5
{[%clk 0:02:21.8]} 17. e4 {[%clk 0:01:56.5]} 17... Nxc3 {[%clk 0:02:06.6]} 18.
bxc3 {[%clk 0:01:57.4]} 18... cxd4 {[%clk 0:02:07.1]} 19. cxd4 {[%clk
0:01:58.1]} 19... Nf6 {[%clk 0:02:07.2]} 20. Nb3 {[%clk 0:01:50]} 20... Qxa3
{[%clk 0:01:58.2]} 21. Rc1 {[%clk 0:01:34]} 21... Bxe4 {[%clk 0:01:47.6]} 22.
Rxc8 {[%clk 0:01:27.5]} 22... Rxc8 {[%clk 0:01:46.9]} 23. Bxe4 {[%clk
0:01:27.8]} 23... Nxe4 {[%clk 0:01:47.8]} 24. Qxe4 {[%clk 0:01:27.6]} 24... Qxb3
{[%clk 0:01:47.7]} 25. Qb7 {[%clk 0:01:27.7]} 25... Qc4 {[%clk 0:01:38.7]} 26.
f5 {[%clk 0:01:21.4]} 26... Qxd4+ {[%clk 0:01:31.3]} 27. Kh1 {[%clk 0:01:21]}
27... Qc4 {[%clk 0:01:31.7]} 28. Kg1 {[%clk 0:01:18.7]} 28... Qc7 {[%clk
0:01:28.5]} 29. Qe4 {[%clk 0:01:14.9]} 29... Qc5+ {[%clk 0:01:25.5]} 30. Kh1
{[%clk 0:01:14.8]} 30... exf5 {[%clk 0:01:25.1]} 31. Qf4 {[%clk 0:01:13.4]}
31... Re8 {[%clk 0:01:20.6]} 32. h3 {[%clk 0:01:12.9]} 32... a5 {[%clk 0:01:17]}
33. Qa4 {[%clk 0:01:11]} 33... Rd8 {[%clk 0:01:14.7]} 34. Qf4 {[%clk 0:01:08.9]}
34... b5 {[%clk 0:01:08.6]} 35. Qh4 {[%clk 0:01:07.2]} 35... Re8 {[%clk
0:01:02.8]} 36. Qh5 {[%clk 0:01:04.7]} 36... a4 {[%clk 0:00:47.4]} 37. Kh2
{[%clk 0:01:04.5]} 37... Qe5+ {[%clk 0:00:44.5]} 38. Kh1 {[%clk 0:01:04.7]}
38... Qc5 {[%clk 0:00:31.7]} 39. Kh2 {[%clk 0:01:01.4]} 39... a3 {[%clk
0:00:28.3]} 40. Rxf5 {[%clk 0:00:58.3]} 40... Qc7+ {[%clk 0:00:28.2]} 41. Kg1
{[%clk 0:00:42.1]} 41... a2 {[%clk 0:00:24.1]} 0-1

[Event "*** Titled Tuesday Blitz"]
[Site "Chess.com"]
[Date "2020.04.28"]
[Round "7"]
[White "CMS13"]
[Black "Vespasian23"]
[Result "1/2-1/2"]
[WhiteElo "2149"]
[BlackElo "2263"]
[TimeControl "180+1"]
[EndTime "11:18:03 PDT"]
[Termination "Game drawn - insufficient material"]

1. e4 {[%clk 0:03:00.9]} 1... c5 {[%clk 0:02:59.2]} 2. Nc3 {[%clk 0:03:00.5]}
2... Nc6 {[%clk 0:02:59.1]} 3. Bb5 {[%clk 0:02:59.9]} 3... d6 {[%clk 0:02:56.9]}
4. Bxc6+ {[%clk 0:02:59.7]} 4... bxc6 {[%clk 0:02:57.8]} 5. d3 {[%clk
0:03:00.1]} 5... e5 {[%clk 0:02:57.8]} 6. f4 {[%clk 0:02:59.9]} 6... Nf6 {[%clk
0:02:51.3]} 7. fxe5 {[%clk 0:02:54.8]} 7... dxe5 {[%clk 0:02:52.2]} 8. Nf3
{[%clk 0:02:54.5]} 8... Qc7 {[%clk 0:02:52.2]} 9. b3 {[%clk 0:02:52.1]} 9... Be7
{[%clk 0:02:48.1]} 10. O-O {[%clk 0:02:51.7]} 10... O-O {[%clk 0:02:48]} 11. Na4
{[%clk 0:02:50.4]} 11... Nd7 {[%clk 0:02:40.4]} 12. Qe1 {[%clk 0:02:39.2]} 12...
Nb6 {[%clk 0:02:36.3]} 13. Qa5 {[%clk 0:02:28.5]} 13... Bg4 {[%clk 0:02:03.2]}
14. Nxc5 {[%clk 0:02:22.1]} 14... f5 {[%clk 0:02:00.9]} 15. Ne6 {[%clk
0:02:17.1]} 15... Qd6 {[%clk 0:01:54.6]} 16. Nxf8 {[%clk 0:02:16.8]} 16... Rxf8
{[%clk 0:01:54.8]} 17. exf5 {[%clk 0:01:44.8]} 17... Bxf3 {[%clk 0:01:51.1]} 18.
gxf3 {[%clk 0:01:39]} 18... Qd4+ {[%clk 0:01:46.3]} 19. Kh1 {[%clk 0:01:35.6]}
19... Qxa1 {[%clk 0:01:43.9]} 20. Qxa7 {[%clk 0:01:31.4]} 20... Bg5 {[%clk
0:01:38.5]} 21. Qxb6 {[%clk 0:01:25.7]} 21... Bxc1 {[%clk 0:01:38.6]} 22. Qxc6
{[%clk 0:01:22.8]} 22... Qb2 {[%clk 0:01:38.8]} 23. a4 {[%clk 0:01:11.6]} 23...
Bf4 {[%clk 0:01:38.4]} 24. Rg1 {[%clk 0:01:07.8]} 24... Qd4 {[%clk 0:01:28.9]}
25. f6 {[%clk 0:00:56.8]} 25... Rxf6 {[%clk 0:01:17.9]} 26. Qxf6 {[%clk
0:00:28.1]} 26... Qxg1+ {[%clk 0:01:17.3]} 27. Kxg1 {[%clk 0:00:28.9]} 27...
gxf6 {[%clk 0:01:18]} 28. a5 {[%clk 0:00:28.8]} 28... Kf7 {[%clk 0:01:17.5]} 29.
Kf2 {[%clk 0:00:28.8]} 29... Bd2 {[%clk 0:01:03.3]} 30. a6 {[%clk 0:00:29]}
30... Bc3 {[%clk 0:01:01.9]} 31. Ke2 {[%clk 0:00:27.5]} 31... Bd4 {[%clk
0:01:01.5]} 32. b4 {[%clk 0:00:26.2]} 32... Ke6 {[%clk 0:01:00.7]} 33. c4 {[%clk
0:00:26.5]} 33... Ba7 {[%clk 0:00:58.6]} 34. c5 {[%clk 0:00:24.8]} 34... Kd5
{[%clk 0:00:58.9]} 35. Kd2 {[%clk 0:00:24.2]} 35... Kc6 {[%clk 0:00:58.3]} 36.
Ke3 {[%clk 0:00:23.3]} 36... f5 {[%clk 0:00:55.5]} 37. d4 {[%clk 0:00:21.5]}
37... exd4+ {[%clk 0:00:50.4]} 38. Kxd4 {[%clk 0:00:21.6]} 38... Kb5 {[%clk
0:00:51.3]} 39. Ke5 {[%clk 0:00:20]} 39... Kxa6 {[%clk 0:00:51.1]} 40. Kxf5
{[%clk 0:00:20.4]} 40... Kb5 {[%clk 0:00:51.6]} 41. Kg5 {[%clk 0:00:20.8]} 41...
Kxb4 {[%clk 0:00:51.8]} 42. c6 {[%clk 0:00:21.2]} 42... Bb6 {[%clk 0:00:51.5]}
43. Kh6 {[%clk 0:00:21.7]} 43... Kc5 {[%clk 0:00:51.7]} 44. Kxh7 {[%clk
0:00:22.3]} 44... Kxc6 {[%clk 0:00:51.4]} 45. f4 {[%clk 0:00:22.8]} 45... Kd6
{[%clk 0:00:51.3]} 46. f5 {[%clk 0:00:22.8]} 46... Ke7 {[%clk 0:00:50.1]} 47.
Kg6 {[%clk 0:00:22.3]} 47... Bd4 {[%clk 0:00:50]} 48. h4 {[%clk 0:00:22.4]}
48... Kf8 {[%clk 0:00:49.2]} 49. h5 {[%clk 0:00:22.9]} 49... Kg8 {[%clk
0:00:49.5]} 50. f6 {[%clk 0:00:22.5]} 50... Bxf6 {[%clk 0:00:48.9]} 51. Kxf6
{[%clk 0:00:23.4]} 51... Kh7 {[%clk 0:00:49.5]} 52. Kg5 {[%clk 0:00:23.7]} 52...
Kg7 {[%clk 0:00:49.8]} 53. h6+ {[%clk 0:00:23.9]} 53... Kh7 {[%clk 0:00:50.4]}
54. Kh5 {[%clk 0:00:24.5]} 54... Kg8 {[%clk 0:00:50.4]} 55. Kg6 {[%clk 0:00:25]}
55... Kh8 {[%clk 0:00:51.3]} 56. Kf7 {[%clk 0:00:25.3]} 56... Kh7 {[%clk
0:00:51.4]} 57. Kf6 {[%clk 0:00:25.8]} 57... Kxh6 {[%clk 0:00:52.3]} 1/2-1/2

[Event "*** Titled Tuesday Blitz"]
[Site "Chess.com"]
[Date "2020.04.28"]
[Round "7"]
[White "kingnb"]
[Black "GukeshDommaraju"]
[Result "0-1"]
[WhiteElo "2482"]
[BlackElo "2756"]
[TimeControl "180+1"]
[EndTime "11:18:04 PDT"]
[Termination "GukeshDommaraju won by resignation"]

1. d4 {[%clk 0:03:00.9]} 1... Nf6 {[%clk 0:02:59.6]} 2. Nf3 {[%clk 0:03:00.6]}
2... d5 {[%clk 0:02:58.8]} 3. e3 {[%clk 0:02:59.6]} 3... e6 {[%clk 0:02:57.7]}
4. Bd3 {[%clk 0:02:58.9]} 4... c5 {[%clk 0:02:55]} 5. c3 {[%clk 0:02:57.4]} 5...
Nc6 {[%clk 0:02:53.9]} 6. O-O {[%clk 0:02:57]} 6... Bd6 {[%clk 0:02:54]} 7. Nbd2
{[%clk 0:02:57.6]} 7... O-O {[%clk 0:02:52.3]} 8. Qe2 {[%clk 0:02:57.6]} 8... e5
{[%clk 0:02:47.1]} 9. dxc5 {[%clk 0:02:57.9]} 9... Bxc5 {[%clk 0:02:46.8]} 10.
e4 {[%clk 0:02:58.8]} 10... Re8 {[%clk 0:02:36.1]} 11. exd5 {[%clk 0:02:53.4]}
11... Nxd5 {[%clk 0:02:31.7]} 12. Ne4 {[%clk 0:02:53.4]} 12... Bf8 {[%clk
0:02:27.7]} 13. Rd1 {[%clk 0:02:53.1]} 13... Qc7 {[%clk 0:02:08.7]} 14. g3
{[%clk 0:02:08.3]} 14... Bg4 {[%clk 0:01:44.1]} 15. Bc2 {[%clk 0:02:00.9]} 15...
Rad8 {[%clk 0:01:37.2]} 16. Bg5 {[%clk 0:01:48.7]} 16... f6 {[%clk 0:01:29.6]}
17. Bb3 {[%clk 0:01:45.2]} 17... Be6 {[%clk 0:01:19.4]} 18. Bxd5 {[%clk
0:01:10.8]} 18... Bxd5 {[%clk 0:01:07.1]} 19. Bxf6 {[%clk 0:01:09.8]} 19... Bxe4
{[%clk 0:01:04.6]} 20. Bxd8 {[%clk 0:01:08.3]} 20... Bxf3 {[%clk 0:01:04.3]} 21.
Qxf3 {[%clk 0:01:02]} 21... Nxd8 {[%clk 0:00:58]} 22. Qd5+ {[%clk 0:00:55.2]}
22... Nf7 {[%clk 0:00:57.5]} 23. Qb5 {[%clk 0:00:40.5]} 23... Re7 {[%clk
0:00:56.1]} 24. Rd2 {[%clk 0:00:38.4]} 24... a6 {[%clk 0:00:55.7]} 25. Qe2
{[%clk 0:00:36.8]} 25... Qc6 {[%clk 0:00:54.1]} 26. h4 {[%clk 0:00:34.7]} 26...
e4 {[%clk 0:00:48.6]} 27. Rd4 {[%clk 0:00:30.2]} 27... Ne5 {[%clk 0:00:42.6]}
28. Kf1 {[%clk 0:00:30.2]} 28... e3 {[%clk 0:00:37.9]} 29. f3 {[%clk 0:00:16.7]}
29... Nxf3 {[%clk 0:00:36]} 30. Rf4 {[%clk 0:00:17.2]} 30... Nd4 {[%clk
0:00:27.8]} 31. Qg2 {[%clk 0:00:15]} 31... e2+ {[%clk 0:00:27.5]} 0-1

[Event "*** Titled Tuesday Blitz"]
[Site "Chess.com"]
[Date "2020.04.28"]
[Round "7"]
[White "martinique24"]
[Black "Kobalia"]
[Result "0-1"]
[WhiteElo "2439"]
[BlackElo "2690"]
[TimeControl "180+1"]
[EndTime "11:18:04 PDT"]
[Termination "Kobalia won on time"]

1. e4 {[%clk 0:03:00.9]} 1... c6 {[%clk 0:02:57.6]} 2. d4 {[%clk 0:02:59.9]}
2... d5 {[%clk 0:02:57.9]} 3. Nd2 {[%clk 0:02:59.8]} 3... g6 {[%clk 0:02:54.9]}
4. c3 {[%clk 0:02:55.7]} 4... Bg7 {[%clk 0:02:55.3]} 5. Bd3 {[%clk 0:02:55.4]}
5... Nh6 {[%clk 0:02:55.5]} 6. Ngf3 {[%clk 0:02:54.2]} 6... O-O {[%clk
0:02:55.9]} 7. O-O {[%clk 0:02:54.1]} 7... f6 {[%clk 0:02:56.4]} 8. exd5 {[%clk
0:02:42.6]} 8... cxd5 {[%clk 0:02:55.3]} 9. c4 {[%clk 0:02:42.6]} 9... e6 {[%clk
0:02:54.9]} 10. Re1 {[%clk 0:02:40.1]} 10... Nc6 {[%clk 0:02:54.1]} 11. cxd5
{[%clk 0:02:25.8]} 11... exd5 {[%clk 0:02:53.4]} 12. h3 {[%clk 0:02:21.3]} 12...
Bf5 {[%clk 0:02:47.3]} 13. Nb3 {[%clk 0:02:19]} 13... Bxd3 {[%clk 0:02:45.1]}
14. Qxd3 {[%clk 0:02:19.9]} 14... b6 {[%clk 0:02:45.3]} 15. Bxh6 {[%clk
0:02:17.7]} 15... Bxh6 {[%clk 0:02:44.9]} 16. Re6 {[%clk 0:02:17.4]} 16... Qd7
{[%clk 0:02:38.8]} 17. Rae1 {[%clk 0:02:16.6]} 17... Ne5 {[%clk 0:02:30.7]} 18.
dxe5 {[%clk 0:01:57.5]} 18... Qxe6 {[%clk 0:02:29.9]} 19. exf6 {[%clk
0:01:57.6]} 19... Qxf6 {[%clk 0:02:27.3]} 20. Qxd5+ {[%clk 0:01:57]} 20... Kh8
{[%clk 0:02:25.1]} 21. Nbd4 {[%clk 0:01:51.8]} 21... Rad8 {[%clk 0:02:23.6]} 22.
Qc4 {[%clk 0:01:46.5]} 22... Rde8 {[%clk 0:02:17.8]} 23. Rxe8 {[%clk 0:01:02.5]}
23... Rxe8 {[%clk 0:02:15.8]} 24. g3 {[%clk 0:01:02.5]} 24... Bg7 {[%clk
0:02:13.7]} 25. Kg2 {[%clk 0:00:58.7]} 25... h6 {[%clk 0:02:13.4]} 26. b3 {[%clk
0:00:56.1]} 26... Kh7 {[%clk 0:02:11.3]} 27. Nb5 {[%clk 0:00:53]} 27... a6
{[%clk 0:02:07.5]} 28. Nc7 {[%clk 0:00:50]} 28... Rc8 {[%clk 0:02:05.8]} 29. Nd5
{[%clk 0:00:49.7]} 29... Qe6 {[%clk 0:01:57.8]} 30. Qxa6 {[%clk 0:00:49.2]}
30... Rc2 {[%clk 0:01:51.4]} 31. Nf4 {[%clk 0:00:44.4]} 31... Qe3 {[%clk
0:01:42.3]} 32. Qf1 {[%clk 0:00:43.1]} 32... Rxa2 {[%clk 0:01:38.1]} 33. Nxg6
{[%clk 0:00:42.5]} 33... Qe4 {[%clk 0:01:29.6]} 34. Nf4 {[%clk 0:00:36.6]} 34...
Bd4 {[%clk 0:01:28.2]} 35. Nd3 {[%clk 0:00:29.9]} 35... Re2 {[%clk 0:01:22.6]}
36. Qc1 {[%clk 0:00:27]} 36... Qxd3 {[%clk 0:01:17.4]} 37. Qc7+ {[%clk
0:00:25.2]} 37... Bg7 {[%clk 0:01:15.8]} 38. Qxb6 {[%clk 0:00:24.9]} 38... Qe4
{[%clk 0:01:12.4]} 39. Qc7 {[%clk 0:00:18.5]} 39... Rc2 {[%clk 0:01:10.7]} 40.
Qf7 {[%clk 0:00:17.1]} 40... Rc6 {[%clk 0:01:02]} 41. Kh2 {[%clk 0:00:15]} 41...
Rf6 {[%clk 0:01:00.6]} 42. Ng5+ {[%clk 0:00:08.8]} 42... hxg5 {[%clk 0:01:00.1]}
43. Qh5+ {[%clk 0:00:08.7]} 43... Kg8 {[%clk 0:00:59.2]} 0-1

[Event "*** Titled Tuesday Blitz"]
[Site "Chess.com"]
[Date "2020.04.28"]
[Round "7"]
[White "etserga"]
[Black "isla88"]
[Result "1-0"]
[WhiteElo "2459"]
[BlackElo "2312"]
[TimeControl "180+1"]
[EndTime "11:18:05 PDT"]
[Termination "etserga won by resignation"]

1. Nf3 {[%clk 0:03:00.9]} 1... c5 {[%clk 0:02:59.4]} 2. c4 {[%clk 0:03:00.1]}
2... Nc6 {[%clk 0:02:59]} 3. d4 {[%clk 0:02:59.8]} 3... cxd4 {[%clk 0:02:58.1]}
4. Nxd4 {[%clk 0:02:59.9]} 4... e5 {[%clk 0:02:57.5]} 5. Nb5 {[%clk 0:02:58]}
5... d6 {[%clk 0:02:57.9]} 6. g3 {[%clk 0:02:56.6]} 6... Be7 {[%clk 0:02:54.9]}
7. Bg2 {[%clk 0:02:55.3]} 7... f5 {[%clk 0:02:52.3]} 8. O-O {[%clk 0:02:54.7]}
8... Nf6 {[%clk 0:02:51.7]} 9. N1c3 {[%clk 0:02:54.4]} 9... a6 {[%clk
0:02:50.3]} 10. Na3 {[%clk 0:02:53.4]} 10... O-O {[%clk 0:02:49.8]} 11. Bd2
{[%clk 0:02:52.5]} 11... Be6 {[%clk 0:02:39.7]} 12. Nd5 {[%clk 0:02:46.8]} 12...
e4 {[%clk 0:02:23.7]} 13. Nf4 {[%clk 0:02:44]} 13... Bf7 {[%clk 0:02:20.7]} 14.
Bc3 {[%clk 0:02:40.2]} 14... Ne5 {[%clk 0:02:14.6]} 15. c5 {[%clk 0:02:28.7]}
15... g5 {[%clk 0:02:09.7]} 16. Nh3 {[%clk 0:02:27.1]} 16... Nd5 {[%clk
0:02:03.6]} 17. Bxe5 {[%clk 0:02:14.6]} 17... dxe5 {[%clk 0:02:02.2]} 18. Nc4
{[%clk 0:02:14.2]} 18... g4 {[%clk 0:01:55]} 19. Nxe5 {[%clk 0:02:12.7]} 19...
gxh3 {[%clk 0:01:55]} 20. Bxh3 {[%clk 0:02:12.6]} 20... Bxc5 {[%clk 0:01:48.1]}
21. Bxf5 {[%clk 0:02:03]} 21... Qf6 {[%clk 0:01:23.7]} 22. Ng4 {[%clk 0:01:22]}
22... Qg5 {[%clk 0:01:01.5]} 23. h4 {[%clk 0:01:16.8]} 23... Qh5 {[%clk
0:00:48.7]} 24. e3 {[%clk 0:01:12]} 24... Kh8 {[%clk 0:00:45.4]} 25. Bxe4 {[%clk
0:01:05.7]} 25... Rad8 {[%clk 0:00:44.2]} 26. Qe2 {[%clk 0:00:52.2]} 26... Be6
{[%clk 0:00:42.8]} 27. f3 {[%clk 0:00:46.2]} 27... Bxg4 {[%clk 0:00:29.7]} 28.
fxg4 {[%clk 0:00:45.3]} 28... Qe5 {[%clk 0:00:27.7]} 29. Rxf8+ {[%clk
0:00:41.9]} 29... Rxf8 {[%clk 0:00:28.6]} 30. Bxd5 {[%clk 0:00:39.9]} 30... Qxd5
{[%clk 0:00:18.4]} 31. Re1 {[%clk 0:00:31.1]} 31... Qe5 {[%clk 0:00:17.8]} 32.
Kg2 {[%clk 0:00:30.3]} 32... Qe4+ {[%clk 0:00:17.8]} 33. Kh2 {[%clk 0:00:29]}
33... Rf3 {[%clk 0:00:17.1]} 34. Rf1 {[%clk 0:00:28.2]} 34... Qxe3 {[%clk
0:00:12.6]} 35. Qxf3 {[%clk 0:00:26.2]} 1-0

[Event "*** Titled Tuesday Blitz"]
[Site "Chess.com"]
[Date "2020.04.28"]
[Round "7"]
[White "Dynamikus"]
[Black "IMRosen"]
[Result "0-1"]
[WhiteElo "2740"]
[BlackElo "2577"]
[TimeControl "180+1"]
[EndTime "11:18:06 PDT"]
[Termination "IMRosen won by checkmate"]

1. e4 {[%clk 0:03:00.9]} 1... c5 {[%clk 0:03:00]} 2. Nf3 {[%clk 0:03:00.7]} 2...
e6 {[%clk 0:03:00.6]} 3. d4 {[%clk 0:03:01.2]} 3... cxd4 {[%clk 0:03:01.5]} 4.
Nxd4 {[%clk 0:03:01.8]} 4... Nc6 {[%clk 0:03:02.3]} 5. Nc3 {[%clk 0:03:02.4]}
5... Qc7 {[%clk 0:03:03]} 6. Be3 {[%clk 0:03:02.8]} 6... a6 {[%clk 0:03:02.2]}
7. Qf3 {[%clk 0:03:03.1]} 7... Nf6 {[%clk 0:02:52.6]} 8. O-O-O {[%clk
0:03:02.5]} 8... Ne5 {[%clk 0:02:50]} 9. Qg3 {[%clk 0:03:02.3]} 9... b5 {[%clk
0:02:50.6]} 10. f4 {[%clk 0:03:01.6]} 10... Neg4 {[%clk 0:02:50.4]} 11. e5
{[%clk 0:03:01.8]} 11... Nxe3 {[%clk 0:02:30.8]} 12. Qxe3 {[%clk 0:03:02.7]}
12... b4 {[%clk 0:02:31.5]} 13. Ne4 {[%clk 0:02:37.1]} 13... Nxe4 {[%clk
0:02:27.5]} 14. Qxe4 {[%clk 0:02:38]} 14... Bb7 {[%clk 0:02:28.1]} 15. Qe1
{[%clk 0:02:34.1]} 15... Rc8 {[%clk 0:02:23.7]} 16. Bd3 {[%clk 0:02:30.9]} 16...
Bc5 {[%clk 0:02:19.4]} 17. Nb3 {[%clk 0:02:26.5]} 17... Be7 {[%clk 0:02:16.8]}
18. f5 {[%clk 0:02:13.9]} 18... a5 {[%clk 0:02:04.9]} 19. Nd4 {[%clk 0:02:09.2]}
19... Bd5 {[%clk 0:01:53]} 20. Kb1 {[%clk 0:02:04.3]} 20... a4 {[%clk
0:01:49.2]} 21. Qg3 {[%clk 0:01:50.5]} 21... Qc5 {[%clk 0:01:49.3]} 22. Qxg7
{[%clk 0:01:42.3]} 22... Rf8 {[%clk 0:01:31.3]} 23. fxe6 {[%clk 0:01:20.6]}
23... fxe6 {[%clk 0:00:52.9]} 24. Bxh7 {[%clk 0:01:20.4]} 24... Kd8 {[%clk
0:00:33.9]} 25. Be4 {[%clk 0:01:12.2]} 25... Rf4 {[%clk 0:00:14.6]} 26. Rhe1
{[%clk 0:00:48.2]} 26... b3 {[%clk 0:00:04.4]} 27. axb3 {[%clk 0:00:45.6]} 27...
axb3 {[%clk 0:00:05]} 28. Bxd5 {[%clk 0:00:14.3]} 28... bxc2+ {[%clk 0:00:05.1]}
29. Nxc2 {[%clk 0:00:14.3]} 29... Qxc2+ {[%clk 0:00:06]} 30. Ka1 {[%clk
0:00:14.7]} 30... Ra4+ {[%clk 0:00:06]} 31. Ba2 {[%clk 0:00:11.6]} 31... Rxa2+
{[%clk 0:00:06.7]} 32. Kxa2 {[%clk 0:00:12.5]} 32... Ra8# {[%clk 0:00:07.1]} 0-1

[Event "*** Titled Tuesday Blitz"]
[Site "Chess.com"]
[Date "2020.04.28"]
[Round "7"]
[White "LucaBrasi1968"]
[Black "ajdemipopushi"]
[Result "1-0"]
[WhiteElo "2470"]
[BlackElo "2285"]
[TimeControl "180+1"]
[EndTime "11:18:06 PDT"]
[Termination "LucaBrasi1968 won on time"]

1. e4 {[%clk 0:03:00.9]} 1... c5 {[%clk 0:02:59.5]} 2. c3 {[%clk 0:03:00.9]}
2... d5 {[%clk 0:02:58.7]} 3. exd5 {[%clk 0:03:00.9]} 3... Qxd5 {[%clk
0:02:59.3]} 4. d4 {[%clk 0:03:01.3]} 4... g6 {[%clk 0:02:59.9]} 5. Nf3 {[%clk
0:03:00.6]} 5... Bg7 {[%clk 0:03:00.1]} 6. Be3 {[%clk 0:03:00.8]} 6... cxd4
{[%clk 0:03:00]} 7. cxd4 {[%clk 0:03:01]} 7... Nf6 {[%clk 0:03:00.2]} 8. Nc3
{[%clk 0:03:01.2]} 8... Qa5 {[%clk 0:03:00.8]} 9. Bc4 {[%clk 0:02:50.5]} 9...
O-O {[%clk 0:03:00.3]} 10. O-O {[%clk 0:02:49.9]} 10... Nbd7 {[%clk 0:03:00.3]}
11. Rc1 {[%clk 0:02:37.9]} 11... Nb6 {[%clk 0:03:00.1]} 12. Bb3 {[%clk
0:02:37.9]} 12... Nbd5 {[%clk 0:02:55.7]} 13. Nxd5 {[%clk 0:02:37.6]} 13... Nxd5
{[%clk 0:02:55.1]} 14. Bg5 {[%clk 0:02:31.2]} 14... e6 {[%clk 0:02:33.1]} 15.
Rc5 {[%clk 0:02:29.5]} 15... Qb6 {[%clk 0:02:32.8]} 16. Qd2 {[%clk 0:02:13.2]}
16... Bd7 {[%clk 0:01:59.5]} 17. Rfc1 {[%clk 0:02:10.8]} 17... Rfc8 {[%clk
0:01:44.7]} 18. h3 {[%clk 0:02:04.4]} 18... a5 {[%clk 0:01:11.8]} 19. Ne5 {[%clk
0:01:45.7]} 19... Rxc5 {[%clk 0:00:29.5]} 20. dxc5 {[%clk 0:01:44.9]} 20... Qc7
{[%clk 0:00:29.7]} 21. Bxd5 {[%clk 0:01:33.2]} 21... Bxe5 {[%clk 0:00:28.6]} 22.
Bf3 {[%clk 0:01:29.3]} 22... Bc6 {[%clk 0:00:27.2]} 23. Bxc6 {[%clk 0:01:27.6]}
23... Qxc6 {[%clk 0:00:27.3]} 24. Bf4 {[%clk 0:01:22.2]} 24... Bxf4 {[%clk
0:00:23.8]} 25. Qxf4 {[%clk 0:01:22.2]} 25... Rc8 {[%clk 0:00:19.6]} 26. Rc3
{[%clk 0:01:21.4]} 26... h5 {[%clk 0:00:18.2]} 27. Qd4 {[%clk 0:00:59.4]} 27...
Rc7 {[%clk 0:00:15.1]} 28. g4 {[%clk 0:00:58.3]} 28... Rd7 {[%clk 0:00:13.4]}
29. Qe3 {[%clk 0:00:42.8]} 29... Rd1+ {[%clk 0:00:12.8]} 30. Kh2 {[%clk
0:00:43.2]} 30... Qh1+ {[%clk 0:00:11.8]} 31. Kg3 {[%clk 0:00:43.4]} 31... hxg4
{[%clk 0:00:11.8]} 32. hxg4 {[%clk 0:00:39.4]} 32... Rg1+ {[%clk 0:00:04.8]} 33.
Kf4 {[%clk 0:00:38.7]} 33... Re1 {[%clk 0:00:02]} 34. Qf3 {[%clk 0:00:25.9]} 1-0

[Event "*** Titled Tuesday Blitz"]
[Site "Chess.com"]
[Date "2020.04.28"]
[Round "7"]
[White "KrolPawel92OnTwitch"]
[Black "Gloomy_Wanderer"]
[Result "0-1"]
[WhiteElo "2661"]
[BlackElo "2823"]
[TimeControl "180+1"]
[EndTime "11:18:07 PDT"]
[Termination "Gloomy_Wanderer won by resignation"]

1. Nf3 {[%clk 0:03:00.9]} 1... f5 {[%clk 0:02:58.4]} 2. c4 {[%clk 0:03:00.3]}
2... Nf6 {[%clk 0:02:58.4]} 3. Nc3 {[%clk 0:03:00.9]} 3... g6 {[%clk 0:02:58.7]}
4. d4 {[%clk 0:03:01.2]} 4... Bg7 {[%clk 0:02:59]} 5. g3 {[%clk 0:03:01.8]} 5...
O-O {[%clk 0:02:59.1]} 6. Bg2 {[%clk 0:03:02.3]} 6... d6 {[%clk 0:02:59.7]} 7.
O-O {[%clk 0:03:02.3]} 7... c6 {[%clk 0:03:00.2]} 8. d5 {[%clk 0:02:55.9]} 8...
e5 {[%clk 0:02:59.9]} 9. dxe6 {[%clk 0:02:55.8]} 9... Bxe6 {[%clk 0:02:59.5]}
10. Qa4 {[%clk 0:02:52.1]} 10... Na6 {[%clk 0:02:51.3]} 11. Ng5 {[%clk
0:02:50.1]} 11... Bc8 {[%clk 0:02:21.1]} 12. Rd1 {[%clk 0:02:46.3]} 12... h6
{[%clk 0:02:17.3]} 13. Nf3 {[%clk 0:02:46.5]} 13... Nc5 {[%clk 0:02:15.1]} 14.
Qc2 {[%clk 0:02:45.7]} 14... Qe7 {[%clk 0:02:09.3]} 15. Bf4 {[%clk 0:02:35.9]}
15... Rd8 {[%clk 0:02:00.5]} 16. Nd4 {[%clk 0:02:32.1]} 16... Nfe4 {[%clk
0:01:50.2]} 17. Nxe4 {[%clk 0:02:16.2]} 17... Nxe4 {[%clk 0:01:43.2]} 18. Rac1
{[%clk 0:02:11]} 18... Kh7 {[%clk 0:01:34.3]} 19. h4 {[%clk 0:02:10.3]} 19...
Bd7 {[%clk 0:01:26.8]} 20. h5 {[%clk 0:01:46.9]} 20... g5 {[%clk 0:01:20.6]} 21.
Bxe4 {[%clk 0:01:43.1]} 21... fxe4 {[%clk 0:01:11.1]} 22. Be3 {[%clk 0:01:23.1]}
22... Kg8 {[%clk 0:00:57.4]} 23. Qb3 {[%clk 0:01:04]} 23... Bg4 {[%clk
0:00:54.3]} 24. f3 {[%clk 0:01:03.6]} 24... Bxh5 {[%clk 0:00:41.3]} 25. Nf5
{[%clk 0:01:03.1]} 25... Qe5 {[%clk 0:00:41.7]} 26. g4 {[%clk 0:00:59.6]} 26...
exf3 {[%clk 0:00:31.4]} 27. exf3 {[%clk 0:00:50.7]} 27... Bg6 {[%clk 0:00:19.6]}
28. Bd4 {[%clk 0:00:40.7]} 28... Qf4 {[%clk 0:00:20]} 29. Qxb7 {[%clk
0:00:19.8]} 29... Bxd4+ {[%clk 0:00:15.9]} 30. Rxd4 {[%clk 0:00:12.4]} 30...
Qxc1+ {[%clk 0:00:16]} 31. Kg2 {[%clk 0:00:12.8]} 31... Bxf5 {[%clk 0:00:16.1]}
32. gxf5 {[%clk 0:00:13.4]} 32... Rab8 {[%clk 0:00:15.5]} 33. Qxc6 {[%clk
0:00:11.4]} 33... Rxb2+ {[%clk 0:00:15.5]} 34. Kg3 {[%clk 0:00:11.4]} 34... Qg1+
{[%clk 0:00:15.2]} 0-1